[Event "EYCC G10-ch 2024"]
[Site "Prague"]
[Date "2024.08.22"]
[Round "1.1"]
[White "Rosset, Anna"]
[Black "Smilic, Nina"]
[Result "0-1"]
[ECO "B50"]
[WhiteElo "1811"]
[BlackElo "1515"]
[Annotator "NA RC"]
[PlyCount "69"]
[EventDate "2024.08.19"]
[EventType "swiss"]
[EventCountry "CZE"]
[SourceTitle "playchess.com"]
[Source "ChessBase"]
[SourceQuality "1"]
[TimeControl "5400+30"]

1. e4 {[%emt 0:00:01]} c5 {[%emt 0:00:05]} 2. Nf3 {[%emt 0:00:06]} d6 {[%emt 0:00:05]} 3. c3 {[%emt 0:00:05]} Nf6 {[%emt 0:00:08]} 4. h3 {[%emt 0:00:04]} Nc6 {[%emt 0:00:08]} 5. Bd3 {[%emt 0:00:14]} e5 {[%emt 0:01:08]} 6. Bc2 {[%emt 0:00:20]} g6 {[%emt 0:02:00]} 7. O-O {[%emt 0:00:16]} Bg7 {[%emt 0:00:52]} 8. Re1 {[%emt 0:01:04]} O-O {[%emt 0:00:16]} 9. a4 {[%emt 0:01:24]} d5 {[%emt 0:03:55]} 10. d3 {[%emt 0:08:19]} h6 {[%emt 0:02:13]} 11. Na3 {[%emt 0:01:19]} Re8 {[%emt 0:01:20]} 12. Bd2 {[%emt 0:11:42]} Be6 {[%emt 0:03:46]} 13. exd5 {[%emt 0:08:28]} Nxd5 {[%emt 0:00:50]} 14. Nc4 {[%emt 0:02:59]} Bf5 {[%emt 0:04:45]} 15. Be3 {[%emt 0:06:16]} Nxe3 {[%emt 0:02:30]} 16. Rxe3 {[%emt 0:03:30]} Qc7 {[%emt 0:05:36]} 17. Nh4 {[%emt 0:10:12]} Be6 {[%emt 0:01:22]} 18. Nd2 {[%emt 0:02:17]} Rad8 {[%emt 0:03:22]} 19. Qe2 {[%emt 0:03:34]} h5 {[%emt 0:04:57]} 20. Ne4 {[%emt 0:03:02]} Qe7 {[%emt 0:03:38]} 21. g3 {[%emt 0:15:23]} Bxh3 {[%emt 0:02:55]} 22. Kh2 {[%emt 0:03:12]} Be6 {[%emt 0:02:36]} 23. Qf3 {[%emt 0:03:35]} Bd5 {[%emt 0:05:29]} 24. Qd1 {[%emt 0:06:25]} f5 {[%emt 0:08:35]} 25. Nd2 {[%emt 0:01:23]} Qf6 {[%emt 0:05:43]} 26. Bb3 Bxb3 {[%emt 0:01:07]} 27. Qxb3+ {[%emt 0:03:52]} Qf7 {[%emt 0:02:10]} 28. Nxg6 {[%emt 0:00:39]} Bh6 {[%emt 0:03:59]} 29. Re2 {[%emt 0:02:43]} Bxd2 {[%emt 0:01:03]} 30. Qxf7+ {[%emt 0:01:34]} Kxf7 {[%emt 0:00:18]} 31. Nxe5+ {[%emt 0:01:01]} Nxe5 {[%emt 0:00:17]} 32. Rxd2 {[%emt 0:00:03]} Nf3+ {[%emt 0:00:26]} 33. Kg2 {[%emt 0:00:08]} Nxd2 {[%emt 0:00:11]} 34. Rh1 {[%emt 0:00:33]} Kg6 {[%emt 0:00:18]} 35. Rd1 {[%emt 0:00:28]} 0-1

[Event "EYCC G10-ch 2024"]
[Site "Prague"]
[Date "2024.08.22"]
[Round "1.2"]
[White "Isakhanyan, Nare"]
[Black "Rzadkowska, Lila"]
[Result "1/2-1/2"]
[ECO "E21"]
[WhiteElo "1512"]
[BlackElo "1794"]
[Annotator "NA RC"]
[PlyCount "84"]
[EventDate "2024.08.19"]
[EventType "swiss"]
[EventCountry "CZE"]
[SourceTitle "playchess.com"]
[Source "ChessBase"]
[SourceQuality "1"]
[TimeControl "5400+30"]

1. d4 {[%emt 0:00:03]} Nf6 {[%emt 0:00:06]} 2. c4 {[%emt 0:00:09]} e6 {[%emt 0:00:08]} 3. Nc3 {[%emt 0:00:10]} Bb4 {[%emt 0:00:20]} 4. Nf3 {[%emt 0:00:15]} d5 {[%emt 0:00:33]} 5. cxd5 {[%emt 0:02:21]} exd5 {[%emt 0:00:07]} 6. Bg5 {[%emt 0:00:56]} h6 {[%emt 0:00:16]} 7. Bh4 {[%emt 0:01:40]} g5 {[%emt 0:00:17]} 8. Bg3 {[%emt 0:00:16]} Ne4 {[%emt 0:01:12]} 9. Qb3 {[%emt 0:12:41]} Nc6 {[%emt 0:00:48]} 10. e3 {[%emt 0:05:07]} a5 {[%emt 0:08:17]} 11. Bb5 {[%emt 0:03:04]} Be6 {[%emt 0:11:03]} 12. Ne5 {[%emt 0:06:05]} O-O {[%emt 0:06:46]} 13. Bxc6 {[%emt 0:06:02]} bxc6 {[%emt 0:00:36]} 14. Nxc6 {[%emt 0:00:15]} Bxc3+ {[%emt 0:00:09]} 15. bxc3 {[%emt 0:00:14]} Qe8 {[%emt 0:01:00]} 16. Ne5 {[%emt 0:03:36]} f6 {[%emt 0:03:21]} 17. Nf3 {[%emt 0:09:56]} Qe7 {[%emt 0:02:03]} 18. Qc2 {[%emt 0:08:16]} Bf5 {[%emt 0:00:39]} 19. Qb3 {[%emt 0:10:52]} Rfd8 {[%emt 0:05:26]} 20. O-O {[%emt 0:18:49]} Bg4 {[%emt 0:09:06]} 21. Qc2 {[%emt 0:06:59]} Bf5 {[%emt 0:02:22]} 22. Qb3 {[%emt 0:00:15]} Rab8 {[%emt 0:02:08]} 23. Qa4 {[%emt 0:02:20]} Nxc3 {[%emt 0:00:39]} 24. Qxa5 {[%emt 0:00:08]} Ne2+ {[%emt 0:00:36]} 25. Kh1 {[%emt 0:00:07]} Nxg3+ {[%emt 0:00:35]} 26. hxg3 {[%emt 0:00:15]} Qd7 {[%emt 0:02:00]} 27. Rfc1 {[%emt 0:02:22]} c6 {[%emt 0:00:30]} 28. Qc5 {[%emt 0:00:28]} Rdc8 {[%emt 0:00:16]} 29. a4 {[%emt 0:00:19]} Be4 {[%emt 0:00:09]} 30. Kg1 {[%emt 0:00:57]} Rb2 {[%emt 0:00:45]} 31. Qc3 {[%emt 0:00:23]} Qb7 {[%emt 0:01:06]} 32. a5 {[%emt 0:00:30]} Rb3 {[%emt 0:01:26]} 33. a6 {[%emt 0:00:38]} Rxc3 {[%emt 0:01:43]} 34. axb7 {[%emt 0:00:08]} Rxc1+ {[%emt 0:00:04]} 35. Rxc1 {[%emt 0:00:12]} Rb8 {[%emt 0:00:17]} 36. Rxc6 {[%emt 0:00:19]} Rxb7 {[%emt 0:00:05]} 37. Rxf6 {[%emt 0:00:20]} Kg7 {[%emt 0:00:34]} 38. Rc6 {[%emt 0:00:48]} Rb1+ {[%emt 0:00:30]} 39. Kh2 {[%emt 0:00:07]} Rb2 {[%emt 0:00:31]} 40. Kg1 {[%emt 0:01:30]} Rb1+ {[%emt 0:00:05]} 41. Kh2 {[%emt 0:00:27]} Rb2 {[%emt 0:00:06]} 42. Kg1 {[%emt 0:00:39]} Rb1+ {[%emt 0:00:23]} 1/2-1/2

[Event "EYCC G10-ch 2024"]
[Site "Prague"]
[Date "2024.08.22"]
[Round "1.3"]
[White "Wang, Yi Xuan"]
[Black "Babazade, Khadija"]
[Result "1/2-1/2"]
[ECO "D35"]
[WhiteElo "1734"]
[BlackElo "1509"]
[Annotator "NA RC"]
[PlyCount "80"]
[EventDate "2024.08.19"]
[EventType "swiss"]
[EventCountry "CZE"]
[SourceTitle "playchess.com"]
[Source "ChessBase"]
[SourceQuality "1"]
[TimeControl "5400+30"]

1. d4 {[%emt 0:00:03]} d5 {[%emt 0:00:06]} 2. c4 {[%emt 0:00:03]} e6 {[%emt 0:00:07]} 3. Nc3 {[%emt 0:00:03]} Nf6 {[%emt 0:00:06]} 4. cxd5 {[%emt 0:00:05]} exd5 {[%emt 0:00:06]} 5. Bg5 {[%emt 0:00:06]} Nbd7 {[%emt 0:00:08]} 6. e3 {[%emt 0:00:19]} Be7 {[%emt 0:01:27]} 7. Qc2 {[%emt 0:00:24]} O-O {[%emt 0:02:06]} 8. Bd3 {[%emt 0:00:36]} c6 {[%emt 0:00:54]} 9. Nf3 {[%emt 0:01:13]} Re8 {[%emt 0:12:50]} 10. O-O {[%emt 0:04:05]} Nf8 {[%emt 0:02:01]} 11. Ne5 {[%emt 0:04:40]} Ng4 {[%emt 0:01:58]} 12. Bxe7 {[%emt 0:03:07]} Qxe7 {[%emt 0:00:12]} 13. Nxg4 {[%emt 0:02:04]} Bxg4 {[%emt 0:00:08]} 14. Rab1 {[%emt 0:00:45]} Qg5 {[%emt 0:09:16]} 15. Rfe1 {[%emt 0:05:15]} Bf3 {[%emt 0:02:12]} 16. Bf1 {[%emt 0:01:27]} Re6 {[%emt 0:01:53]} 17. e4 {[%emt 0:06:48]} Rg6 {[%emt 0:06:08]} 18. g3 {[%emt 0:01:46]} Ne6 {[%emt 0:16:14]} 19. exd5 {[%emt 0:02:20]} cxd5 {[%emt 0:04:15]} 20. Qd3 {[%emt 0:02:27]} Qh5 {[%emt 0:06:23]} 21. Re5 {[%emt 0:00:22]} Qg4 {[%emt 0:00:26]} 22. h3 {[%emt 0:01:17]} Qf4 {[%emt 0:02:05]} 23. Bg2 {[%emt 0:04:07]} Bxg2 {[%emt 0:10:15]} 24. Kxg2 {[%emt 0:00:11]} Qxe5 {[%emt 0:02:30]} 25. Qxg6 {[%emt 0:02:34]} Qxd4 {[%emt 0:02:30]} 26. Qf5 {[%emt 0:01:22]} Rc8 {[%emt 0:02:54]} 27. Rd1 {[%emt 0:01:17]} Qf6 {[%emt 0:03:23]} 28. Qxf6 {[%emt 0:04:05]} gxf6 {[%emt 0:00:04]} 29. Nxd5 {[%emt 0:01:04]} Kg7 {[%emt 0:00:23]} 30. Ne3 {[%emt 0:01:59]} Rc7 {[%emt 0:01:39]} 31. f4 {[%emt 0:01:36]} b6 {[%emt 0:00:55]} 32. Nf5+ {[%emt 0:01:38]} Kf8 {[%emt 0:02:20]} 33. Ne3 {[%emt 0:02:12]} Kg7 {[%emt 0:00:12]} 34. h4 {[%emt 0:02:00]} Kf8 {[%emt 0:03:52]} 35. f5 {[%emt 0:01:42]} Nc5 {[%emt 0:00:36]} 36. Rd8+ {[%emt 0:04:47]} Kg7 {[%emt 0:00:13]} 37. h5 {[%emt 0:01:23]} Rd7 {[%emt 0:00:34]} 38. h6+ {[%emt 0:06:00]} Kxh6 {[%emt 0:00:16]} 39. Rg8 {[%emt 0:00:43]} Ne4 {[%emt 0:02:25]} 40. Ng4+ {[%emt 0:10:34]} Kh5 {[%emt 0:00:08]} 1/2-1/2

[Event "EYCC G10-ch 2024"]
[Site "Prague"]
[Date "2024.08.22"]
[Round "1.4"]
[White "Topencikova, Ellen"]
[Black "Bakhshi, Rana"]
[Result "0-1"]
[ECO "B52"]
[WhiteElo "1501"]
[BlackElo "1732"]
[Annotator "NA RC"]
[PlyCount "62"]
[EventDate "2024.08.19"]
[EventType "swiss"]
[EventCountry "CZE"]
[SourceTitle "playchess.com"]
[Source "ChessBase"]
[SourceQuality "1"]
[TimeControl "5400+30"]

1. e4 {[%emt 0:00:02]} c5 {[%emt 0:00:13]} 2. Nf3 {[%emt 0:00:17]} d6 {[%emt 0:00:12]} 3. Bb5+ {[%emt 0:00:13]} Bd7 {[%emt 0:00:33]} 4. Bxd7+ {[%emt 0:00:39]} Qxd7 {[%emt 0:00:37]} 5. O-O {[%emt 0:00:26]} Nc6 {[%emt 0:00:46]} 6. c3 {[%emt 0:01:00]} Nf6 {[%emt 0:00:55]} 7. Re1 {[%emt 0:01:13]} e6 {[%emt 0:01:21]} 8. d4 {[%emt 0:00:42]} cxd4 {[%emt 0:02:37]} 9. cxd4 {[%emt 0:01:03]} d5 {[%emt 0:03:08]} 10. exd5 {[%emt 0:07:00]} Nxd5 {[%emt 0:02:54]} 11. a3 {[%emt 0:00:43]} Be7 {[%emt 0:03:37]} 12. Nc3 {[%emt 0:04:27]} Rd8 {[%emt 0:04:11]} 13. Nxd5 {[%emt 0:04:17]} Qxd5 {[%emt 0:00:53]} 14. Be3 {[%emt 0:00:58]} g5 {[%emt 0:02:53]} 15. h3 {[%emt 0:01:16]} h5 {[%emt 0:00:32]} 16. Nh2 {[%emt 0:06:35]} f5 {[%emt 0:01:47]} 17. Bd2 {[%emt 0:07:05]} g4 {[%emt 0:04:37]} 18. Re3 {[%emt 0:02:26]} Qxd4 {[%emt 0:07:36]} 19. Nf1 {[%emt 0:01:27]} gxh3 {[%emt 0:06:45]} 20. Rxh3 {[%emt 0:01:22]} Kf7 {[%emt 0:09:20]} 21. Rxh5 {[%emt 0:01:26]} Bc5 {[%emt 0:03:20]} 22. Qf3 {[%emt 0:02:09]} Qxf2+ {[%emt 0:01:08]} 23. Qxf2 {[%emt 0:00:18]} Bxf2+ {[%emt 0:00:07]} 24. Kxf2 {[%emt 0:00:04]} Rxh5 {[%emt 0:00:14]} 25. Be3 {[%emt 0:00:48]} Ne5 {[%emt 0:05:37]} 26. Bxa7 {[%emt 0:01:04]} Nd3+ {[%emt 0:02:49]} 27. Ke2 {[%emt 0:01:34]} e5 {[%emt 0:08:59]} 28. g3 {[%emt 0:01:27]} e4 {[%emt 0:00:24]} 29. Ne3 {[%emt 0:01:00]} Rh2+ {[%emt 0:00:43]} 30. Kf1 {[%emt 0:00:29]} Rh1+ {[%emt 0:00:07]} 31. Ke2 {[%emt 0:00:30]} Rxa1 {[%emt 0:00:14]} 0-1

[Event "EYCC G10-ch 2024"]
[Site "Prague"]
[Date "2024.08.22"]
[Round "1.5"]
[White "Chen, Yuefan"]
[Black "Karabas, Beren Nisa"]
[Result "1-0"]
[ECO "D10"]
[WhiteElo "1682"]
[BlackElo "1494"]
[Annotator "NA RC"]
[PlyCount "207"]
[EventDate "2024.08.19"]
[EventType "swiss"]
[EventCountry "CZE"]
[SourceTitle "playchess.com"]
[Source "ChessBase"]
[SourceQuality "1"]
[TimeControl "5400+30"]

1. d4 {[%emt 0:00:02]} d5 {[%emt 0:00:06]} 2. c4 {[%emt 0:00:06]} c6 {[%emt 0:00:05]} 3. cxd5 {[%emt 0:00:05]} cxd5 {[%emt 0:00:08]} 4. Nc3 {[%emt 0:00:06]} Nf6 {[%emt 0:00:21]} 5. Bf4 {[%emt 0:00:26]} Nc6 {[%emt 0:00:21]} 6. e3 {[%emt 0:00:54]} a6 {[%emt 0:00:09]} 7. Qb3 {[%emt 0:05:07]} e6 {[%emt 0:09:21]} 8. a3 {[%emt 0:04:34]} Nh5 {[%emt 0:03:15]} 9. Bg3 {[%emt 0:02:37]} Nxg3 {[%emt 0:00:11]} 10. hxg3 {[%emt 0:00:58]} Bd6 {[%emt 0:00:18]} 11. Bd3 {[%emt 0:02:21]} h6 {[%emt 0:04:28]} 12. Nh3 {[%emt 0:04:20]} Na5 {[%emt 0:03:06]} 13. Qc2 {[%emt 0:02:49]} b5 {[%emt 0:02:47]} 14. Nf4 {[%emt 0:02:11]} Bxf4 {[%emt 0:04:22]} 15. gxf4 {[%emt 0:01:35]} Bb7 {[%emt 0:07:53]} 16. f5 {[%emt 0:02:50]} Qe7 {[%emt 0:02:54]} 17. fxe6 {[%emt 0:02:08]} Qxe6 {[%emt 0:00:26]} 18. Rc1 {[%emt 0:05:47]} Qg4 {[%emt 0:02:15]} 19. Kf1 {[%emt 0:03:08]} O-O {[%emt 0:01:56]} 20. Rh3 {[%emt 0:02:53]} Rfe8 {[%emt 0:04:25]} 21. Kg1 {[%emt 0:02:56]} Rad8 {[%emt 0:02:01]} 22. f4 {[%emt 0:09:08]} Qe6 {[%emt 0:05:41]} 23. Rf1 {[%emt 0:02:52]} Qf6 {[%emt 0:02:58]} 24. Rff3 {[%emt 0:06:15]} Bc8 {[%emt 0:03:00]} 25. Rhg3 {[%emt 0:03:05]} Nc6 {[%emt 0:03:56]} 26. Ne2 {[%emt 0:03:14]} Ne7 {[%emt 0:03:41]} 27. f5 {[%emt 0:01:30]} Kh8 {[%emt 0:13:32]} 28. Nf4 {[%emt 0:02:28]} Qc6 {[%emt 0:02:41]} 29. Qb1 {[%emt 0:03:37]} Rd6 {[%emt 0:05:50]} 30. Nh5 {[%emt 0:02:11]} Rg8 {[%emt 0:00:30]} 31. Rf4 {[%emt 0:02:14]} g6 {[%emt 0:05:46]} 32. fxg6 {[%emt 0:06:12]} fxg6 {[%emt 0:02:43]} 33. Rf7 {[%emt 0:01:58]} Nf5 {[%emt 0:01:36]} 34. Rf3 {[%emt 0:02:48]} Qe8 {[%emt 0:01:35]} 35. Rc7 {[%emt 0:01:22]} Rc6 {[%emt 0:01:22]} 36. Rxc6 {[%emt 0:01:16]} Qxc6 {[%emt 0:00:02]} 37. Nf4 {[%emt 0:00:11]} Qd6 {[%emt 0:01:08]} 38. Qf1 {[%emt 0:02:48]} Nh4 {[%emt 0:01:09]} 39. Rf2 {[%emt 0:02:02]} Bf5 {[%emt 0:00:31]} 40. Bxf5 {[%emt 0:01:56]} Nxf5 {[%emt 0:00:03]} 41. Nxg6+ {[%emt 0:00:57]} Qxg6 {[%emt 0:00:35]} 42. Rxf5 {[%emt 0:00:05]} Qg3 {[%emt 0:01:01]} 43. Rf3 {[%emt 0:00:58]} Qg5 {[%emt 0:00:04]} 44. Qf2 {[%emt 0:00:33]} Qg6 {[%emt 0:01:05]} 45. Rf6 {[%emt 0:00:57]} Qg5 {[%emt 0:00:39]} 46. Rxa6 {[%emt 0:00:38]} Rc8 {[%emt 0:00:40]} 47. Qf6+ {[%emt 0:01:04]} Qxf6 {[%emt 0:00:08]} 48. Rxf6 {[%emt 0:00:04]} Rc1+ {[%emt 0:00:11]} 49. Kh2 {[%emt 0:00:58]} Kg7 {[%emt 0:00:27]} 50. Rb6 {[%emt 0:00:12]} Re1 {[%emt 0:00:12]} 51. Rxb5 {[%emt 0:00:06]} Rxe3 {[%emt 0:00:06]} 52. Rxd5 {[%emt 0:00:04]} Rb3 {[%emt 0:00:07]} 53. Rd7+ {[%emt 0:00:30]} Kg6 {[%emt 0:00:08]} 54. d5 {[%emt 0:00:59]} Kf6 {[%emt 0:00:40]} 55. d6 {[%emt 0:00:37]} Ke6 {[%emt 0:00:38]} 56. Rh7 {[%emt 0:00:16]} Kxd6 {[%emt 0:00:16]} 57. Rxh6+ {[%emt 0:00:07]} Kd5 {[%emt 0:00:20]} 58. Rh5+ {[%emt 0:00:19]} Kd4 {[%emt 0:00:25]} 59. Rh4+ {[%emt 0:00:05]} Kc5 {[%emt 0:00:38]} 60. Rb4 {[%emt 0:00:06]} Re3 {[%emt 0:00:24]} 61. b3 {[%emt 0:00:37]} Kc6 {[%emt 0:00:23]} 62. g3 {[%emt 0:00:27]} Rd3 {[%emt 0:00:32]} 63. Kh3 {[%emt 0:00:09]} Re3 {[%emt 0:00:09]} 64. Kh4 {[%emt 0:00:12]} Re1 {[%emt 0:00:14]} 65. g4 {[%emt 0:00:17]} Rh1+ {[%emt 0:00:05]} 66. Kg5 {[%emt 0:00:05]} Rg1 {[%emt 0:00:07]} 67. Kf5 {[%emt 0:00:18]} Rf1+ {[%emt 0:00:06]} 68. Rf4 {[%emt 0:00:21]} Rb1 {[%emt 0:00:07]} 69. Rf3 {[%emt 0:00:12]} Kd6 {[%emt 0:00:18]} 70. g5 {[%emt 0:00:08]} Rg1 {[%emt 0:00:12]} 71. g6 {[%emt 0:00:06]} Ke7 {[%emt 0:00:04]} 72. b4 {[%emt 0:01:08]} Kf8 {[%emt 0:00:05]} 73. Kf6 {[%emt 0:00:23]} Kg8 {[%emt 0:00:11]} 74. Rf5 {[%emt 0:01:55]} Rg3 {[%emt 0:00:12]} 75. a4 {[%emt 0:00:35]} Rg4 {[%emt 0:00:06]} 76. Rb5 {[%emt 0:00:21]} Rf4+ {[%emt 0:00:09]} 77. Kg5 {[%emt 0:00:19]} Rf2 {[%emt 0:00:18]} 78. Rb8+ {[%emt 0:00:23]} Kg7 {[%emt 0:00:09]} 79. Rb7+ {[%emt 0:00:14]} Kg8 {[%emt 0:00:09]} 80. g7 {[%emt 0:00:11]} Kh7 {[%emt 0:00:22]} 81. a5 {[%emt 0:00:33]} Rg2+ {[%emt 0:00:08]} 82. Kf5 {[%emt 0:00:20]} Re2 {[%emt 0:00:07]} 83. a6 {[%emt 0:00:15]} Ra2 {[%emt 0:00:06]} 84. a7 {[%emt 0:00:16]} Ra3 {[%emt 0:00:13]} 85. Kf6 {[%emt 0:00:17]} Rf3+ {[%emt 0:00:15]} 86. Ke6 {[%emt 0:00:12]} Re3+ {[%emt 0:00:04]} 87. Kd6 {[%emt 0:00:07]} Rd3+ {[%emt 0:00:03]} 88. Kc6 {[%emt 0:00:06]} Rc3+ {[%emt 0:00:04]} 89. Kb6 {[%emt 0:00:10]} Ra3 {[%emt 0:00:07]} 90. Rb8 {[%emt 0:00:08]} Kxg7 {[%emt 0:00:05]} 91. a8=Q {[%emt 0:00:06]} Rxa8 {[%emt 0:00:04]} 92. Rxa8 {[%emt 0:00:06]} Kf6 {[%emt 0:00:05]} 93. Kc7 {[%emt 0:00:05]} Ke5 {[%emt 0:00:05]} 94. b5 {[%emt 0:00:07]} Kd5 {[%emt 0:00:05]} 95. b6 {[%emt 0:00:13]} Kc5 {[%emt 0:00:11]} 96. b7 {[%emt 0:00:05]} Kd5 {[%emt 0:00:02]} 97. b8=Q {[%emt 0:00:07]} Ke4 {[%emt 0:00:05]} 98. Qb5 {[%emt 0:00:11]} Kd4 {[%emt 0:00:05]} 99. Ra4+ {[%emt 0:00:06]} Kc3 {[%emt 0:00:07]} 100. Kc6 {[%emt 0:00:20]} Kc2 {[%emt 0:00:11]} 101. Rd4 {[%emt 0:00:20]} Kc1 {[%emt 0:00:08]} 102. Qc5+ {[%emt 0:00:08]} Kb2 {[%emt 0:00:08]} 103. Rb4+ {[%emt 0:00:04]} Ka3 {[%emt 0:00:02]} 104. Qa5# {[%emt 0:00:04]} 1-0

[Event "EYCC G10-ch 2024"]
[Site "Prague"]
[Date "2024.08.22"]
[Round "1.6"]
[White "Trzcinska, Weronika"]
[Black "Hatuk, Neris"]
[Result "0-1"]
[ECO "B10"]
[WhiteElo "1490"]
[BlackElo "1671"]
[Annotator "NA RC"]
[PlyCount "112"]
[EventDate "2024.08.19"]
[EventType "swiss"]
[EventCountry "CZE"]
[SourceTitle "playchess.com"]
[Source "ChessBase"]
[SourceQuality "1"]
[TimeControl "5400+30"]

1. e4 {[%emt 0:00:00]} c6 {[%emt 0:00:07]} 2. Nc3 {[%emt 0:00:07]} d5 {[%emt 0:00:04]} 3. exd5 {[%emt 0:00:10]} cxd5 {[%emt 0:00:07]} 4. d4 {[%emt 0:00:19]} Nc6 {[%emt 0:00:11]} 5. Nf3 {[%emt 0:00:08]} Bf5 {[%emt 0:00:15]} 6. Bd3 {[%emt 0:00:22]} Bxd3 {[%emt 0:00:38]} 7. Qxd3 Nf6 {[%emt 0:01:12]} 8. a3 {[%emt 0:01:23]} e6 {[%emt 0:01:05]} 9. Bf4 {[%emt 0:00:15]} Bd6 {[%emt 0:00:42]} 10. Bxd6 {[%emt 0:03:55]} Qxd6 {[%emt 0:00:46]} 11. h3 {[%emt 0:00:19]} O-O {[%emt 0:02:21]} 12. O-O {[%emt 0:00:14]} Rfe8 {[%emt 0:04:54]} 13. Rfe1 {[%emt 0:00:19]} Rad8 {[%emt 0:02:56]} 14. Rad1 {[%emt 0:01:00]} a6 {[%emt 0:01:22]} 15. Na4 {[%emt 0:01:27]} Ne4 {[%emt 0:03:34]} 16. Nd2 {[%emt 0:00:33]} Nxd2 {[%emt 0:02:18]} 17. Qxd2 {[%emt 0:00:15]} e5 {[%emt 0:07:40]} 18. Nc5 {[%emt 0:00:54]} Nxd4 {[%emt 0:01:53]} 19. c3 {[%emt 0:01:41]} Nf3+ {[%emt 0:02:37]} 20. gxf3 {[%emt 0:00:20]} Qxc5 {[%emt 0:00:06]} 21. Qg5 {[%emt 0:01:00]} f6 {[%emt 0:02:36]} 22. Qg4 {[%emt 0:00:19]} b5 {[%emt 0:08:40]} 23. Rd2 {[%emt 0:00:37]} Qc6 {[%emt 0:09:25]} 24. Red1 {[%emt 0:00:56]} Rf8 {[%emt 0:03:29]} 25. Qb4 {[%emt 0:02:09]} f5 {[%emt 0:04:39]} 26. Qe7 {[%emt 0:00:39]} e4 {[%emt 0:01:38]} 27. fxe4 {[%emt 0:00:27]} fxe4 {[%emt 0:00:14]} 28. Qg5 {[%emt 0:01:22]} Rd6 {[%emt 0:00:28]} 29. Kf1 {[%emt 0:01:50]} Rg6 {[%emt 0:04:16]} 30. Qe5 {[%emt 0:01:58]} Qd7 {[%emt 0:02:17]} 31. Qh5 {[%emt 0:08:46]} e3 {[%emt 0:02:53]} 32. Re2 {[%emt 0:01:01]} exf2 {[%emt 0:01:17]} 33. Rxf2 {[%emt 0:00:42]} Rxf2+ {[%emt 0:00:08]} 34. Kxf2 {[%emt 0:00:29]} Qf7+ {[%emt 0:00:05]} 35. Qf3 {[%emt 0:02:10]} Rf6 {[%emt 0:00:03]} 36. Rd3 {[%emt 0:00:33]} Rxf3+ {[%emt 0:00:06]} 37. Rxf3 {[%emt 0:00:21]} Qg6 {[%emt 0:00:09]} 38. Re3 {[%emt 0:00:23]} Qf5+ {[%emt 0:00:12]} 39. Kg2 {[%emt 0:00:42]} Qc2+ {[%emt 0:00:04]} 40. Kf3 {[%emt 0:00:27]} Qxb2 {[%emt 0:00:04]} 41. Re8+ {[%emt 0:00:28]} Kf7 {[%emt 0:00:05]} 42. Ra8 {[%emt 0:00:42]} Qxc3+ {[%emt 0:00:05]} 43. Kg2 {[%emt 0:00:53]} Qxa3 {[%emt 0:00:04]} 44. Rd8 {[%emt 0:00:12]} b4 {[%emt 0:00:08]} 45. Rd7+ {[%emt 0:00:32]} Ke6 {[%emt 0:00:06]} 46. Rb7 {[%emt 0:00:22]} b3 {[%emt 0:00:03]} 47. Kf2 {[%emt 0:00:19]} b2 {[%emt 0:00:05]} 48. Ke2 {[%emt 0:00:12]} Qa2 {[%emt 0:00:13]} 49. Kd3 {[%emt 0:00:24]} b1=Q+ {[%emt 0:00:11]} 50. Rxb1 {[%emt 0:00:12]} Qxb1+ {[%emt 0:00:05]} 51. Kd4 {[%emt 0:00:22]} Qe4+ {[%emt 0:00:07]} 52. Kc5 {[%emt 0:00:24]} Qc4+ {[%emt 0:00:02]} 53. Kb6 {[%emt 0:00:37]} Qb5+ {[%emt 0:00:29]} 54. Ka7 {[%emt 0:00:50]} Kd7 {[%emt 0:00:06]} 55. Ka8 {[%emt 0:00:13]} Kc7 {[%emt 0:00:06]} 56. Ka7 {[%emt 0:00:22]} Qb7# {[%emt 0:00:05]} 0-1

[Event "EYCC G10-ch 2024"]
[Site "Prague"]
[Date "2024.08.22"]
[Round "1.7"]
[White "Nguyen Doan, Bao Anh Angelina"]
[Black "Mammadova, Maryam"]
[Result "1/2-1/2"]
[ECO "B34"]
[WhiteElo "1659"]
[BlackElo "1489"]
[Annotator "NA RC"]
[PlyCount "105"]
[EventDate "2024.08.19"]
[EventType "swiss"]
[EventCountry "CZE"]
[SourceTitle "playchess.com"]
[Source "ChessBase"]
[SourceQuality "1"]
[TimeControl "5400+30"]

1. e4 {[%emt 0:00:01]} c5 {[%emt 0:00:05]} 2. Nf3 {[%emt 0:00:07]} Nc6 {[%emt 0:00:05]} 3. d4 {[%emt 0:00:06]} cxd4 {[%emt 0:00:04]} 4. Nxd4 {[%emt 0:00:04]} Nf6 {[%emt 0:00:04]} 5. Nc3 {[%emt 0:00:16]} e5 {[%emt 0:00:06]} 6. Ndb5 {[%emt 0:00:18]} d6 {[%emt 0:00:09]} 7. Nd5 {[%emt 0:00:15]} a6 {[%emt 0:00:11]} 8. Nbc7+ {[%emt 0:00:43]} Kd7 {[%emt 0:00:48]} 9. Nxa8 {[%emt 0:00:24]} Nxd5 {[%emt 0:00:53]} 10. Qxd5 {[%emt 0:02:01]} Ke8 {[%emt 0:00:46]} 11. Be3 {[%emt 0:03:43]} Be6 {[%emt 0:00:57]} 12. Qd2 {[%emt 0:00:56]} Qxa8 {[%emt 0:01:16]} 13. Be2 {[%emt 0:03:16]} Be7 {[%emt 0:03:23]} 14. O-O {[%emt 0:02:01]} h5 {[%emt 0:05:59]} 15. f4 {[%emt 0:06:13]} Qd8 {[%emt 0:06:24]} 16. f5 {[%emt 0:03:20]} Bd7 {[%emt 0:00:24]} 17. Bc4 {[%emt 0:01:50]} Kf8 {[%emt 0:09:03]} 18. Qd5 {[%emt 0:09:20]} Be8 {[%emt 0:01:28]} 19. a3 {[%emt 0:01:58]} h4 {[%emt 0:05:48]} 20. Qd1 {[%emt 0:06:23]} h3 {[%emt 0:05:01]} 21. g4 {[%emt 0:05:06]} b5 {[%emt 0:11:15]} 22. Bd5 {[%emt 0:02:32]} Nb8 {[%emt 0:06:35]} 23. Qf3 {[%emt 0:03:09]} Nd7 {[%emt 0:01:09]} 24. Rad1 {[%emt 0:02:56]} Nf6 {[%emt 0:02:40]} 25. Qg3 {[%emt 0:02:43]} Nxd5 {[%emt 0:01:56]} 26. exd5 {[%emt 0:00:46]} Bh4 {[%emt 0:06:29]} 27. Qf3 {[%emt 0:02:59]} Bg5 {[%emt 0:03:16]} 28. Bxg5 {[%emt 0:04:04]} Qxg5 {[%emt 0:00:27]} 29. Rfe1 {[%emt 0:03:01]} f6 {[%emt 0:06:54]} 30. Re4 {[%emt 0:04:41]} Rh4 {[%emt 0:03:06]} 31. Kf2 {[%emt 0:03:22]} Rh8 {[%emt 0:03:40]} 32. b3 {[%emt 0:02:50]} Bd7 {[%emt 0:03:13]} 33. c4 {[%emt 0:02:05]} Kf7 {[%emt 0:01:43]} 34. cxb5 {[%emt 0:03:18]} axb5 {[%emt 0:02:35]} 35. Qe3 {[%emt 0:03:24]} Qh4+ {[%emt 0:01:00]} 36. Ke2 {[%emt 0:00:56]} Rc8 {[%emt 0:03:24]} 37. Rc1 {[%emt 0:01:50]} Rxc1 {[%emt 0:01:34]} 38. Qxc1 {[%emt 0:00:07]} Bxf5 {[%emt 0:02:27]} 39. Re3 {[%emt 0:04:26]} Qxg4+ {[%emt 0:00:16]} 40. Kd2 {[%emt 0:01:59]} Qg2+ {[%emt 0:00:38]} 41. Kc3 {[%emt 0:01:03]} Qxh2 {[%emt 0:00:46]} 42. Kb4 {[%emt 0:00:57]} Qf4+ {[%emt 0:00:29]} 43. Kxb5 {[%emt 0:00:13]} h2 {[%emt 0:00:38]} 44. Qc7+ {[%emt 0:00:36]} Kg8 {[%emt 0:00:10]} 45. Re1 {[%emt 0:00:24]} Bd3+ {[%emt 0:00:50]} 46. Kb6 {[%emt 0:00:36]} Qf2+ {[%emt 0:00:11]} 47. Kb7 {[%emt 0:00:07]} Qg2 {[%emt 0:02:05]} 48. Rh1 {[%emt 0:01:11]} Qxh1 {[%emt 0:01:28]} 49. Qc8+ {[%emt 0:00:17]} Kf7 {[%emt 0:00:35]} 50. Qd7+ {[%emt 0:00:21]} Kg6 {[%emt 0:00:26]} 51. Qg4+ {[%emt 0:00:12]} Kh7 {[%emt 0:00:23]} 52. Qh5+ {[%emt 0:00:09]} Kg8 {[%emt 0:00:30]} 53. Qe8+ {[%emt 0:00:13]} 1/2-1/2